fUST/lending_fUST_20251002
["ID","MTS","AMOUNT","RATE_DAILY","PERIOD"]
[388740333,1759342693959,5000.0,0.00019008,2]
[388740335,1759342716807,5000.0,0.00019008,2]
[388740336,1759342739703,5000.0,0.00019008,2]
[388740337,1759342741418,1500.0,0.00018177,2]
[388740339,1759342762069,5000.0,0.00019008,2]
[388740340,1759342780167,786.5490695,0.00018323,2]
[388740341,1759342785246,5000.0,0.00019008,2]
[388740342,1759342807772,5000.0,0.00019008,2]
[388740343,1759342830285,5000.0,0.00019008,2]
[388740344,1759342852515,5000.0,0.00019008,2]
[388740345,1759342874896,5000.0,0.00019008,2]
[388740346,1759342886721,36116.5718149,0.00018177,2]
[388740348,1759342898679,5000.0,0.00019008,2]
[388740349,1759342921960,4650.74965512,0.00019008,2]
[388740352,1759342939267,1000.0,0.00018177,2]
[388740354,1759342967577,500.0,0.00027397,120]
[388740368,1759342981116,167.243571,9.089e-05,2]
[388740373,1759343079531,155.95592423,0.00019075,2]
[388740374,1759343084518,155.95592423,0.00019078,2]
[388740381,1759343120143,1080.65298057,0.00019078,2]
[388740388,1759343136813,231.9984478,0.00018178,2]
[388740389,1759343139599,1764.29528045,0.00019078,2]
[388740393,1759343191614,666.0,0.00018177,2]
[388740394,1759343205511,3235.70471955,0.00019078,2]
[388740398,1759343243692,194.300234,0.00018176,2]
[388740400,1759343277542,500.0,0.00027397,120]
[388740403,1759343320708,11249.36586289,0.00033766,120]
[388740404,1759343323423,209.43993751,0.00026,120]
[388740410,1759343400764,945.57135799,0.00019078,2]
[388740480,1759343435812,-150.0,0.00019093,2]
[388740482,1759343435822,-518.19880429,0.00019172,2]
[388740484,1759343435835,-681.80119571,0.00019172,2]
[388740486,1759343435845,-1200.0,0.00019175,2]
[388740488,1759343435854,-300.0,0.00019176,2]
[388740489,1759343435863,-300.0,0.00019176,2]
[388740491,1759343435872,-300.0,0.00019176,2]
[388740493,1759343435882,-300.0,0.00019176,2]
[388740495,1759343435891,-300.0,0.00019176,2]
[388740497,1759343435901,-500.0,0.00019177,2]
[388740499,1759343435911,-500.0,0.00019177,2]
[388740501,1759343435920,-483.65496503,0.00019177,2]
[388740503,1759343435930,-500.0,0.00019177,2]
[388740505,1759343435939,-448.79093461,0.00019177,2]
[388740508,1759343435948,-500.0,0.00019177,2]
[388740510,1759343435961,-500.0,0.00019177,2]
[388740512,1759343435971,-160.43692524,0.00019177,2]
[388740513,1759343435981,-500.0,0.00019177,2]
[388740514,1759343435991,-500.0,0.00019177,2]
[388740515,1759343436002,-500.0,0.00019177,2]
[388740516,1759343436012,-234.43649287,0.00019177,2]
[388740517,1759343436022,-500.0,0.00019177,2]
[388740518,1759343436035,-410.86038272,0.00019177,2]
[388740519,1759343436044,-500.0,0.00019177,2]
[388740520,1759343436055,-500.0,0.00019177,2]
[388740521,1759343436064,-500.0,0.00019177,2]
[388740522,1759343436074,-484.93122311,0.00019177,2]
[388740523,1759343436084,-271.8796297,0.00019177,2]
[388740524,1759343436095,-460.0,0.00019178,2]
[388740525,1759343436104,-480.0,0.00019178,2]
[388740526,1759343436114,-500.0,0.00019178,2]
[388740527,1759343436125,-520.0,0.00019178,3]
[388740528,1759343436135,-500.0,0.00019178,2]
[388740529,1759343436145,-500.0,0.00019178,2]
[388740530,1759343436156,-257.93516936,0.00019178,2]
[388740531,1759343436168,-242.06483064,0.00019178,2]
[388740532,1759343436177,-480.0,0.00019178,2]
[388740533,1759343436186,-346.56865598,0.00019178,2]
[388740554,1759343438418,-133.43134402,0.00019178,2]
[388740556,1759343438429,-500.0,0.00019178,2]
[388740558,1759343438439,-500.0,0.00019178,2]
[388740559,1759343438448,-500.0,0.00019178,2]
[388740560,1759343438459,-361.4597644,0.00019178,2]
[388740562,1759343438468,-500.0,0.00019178,2]
[388740564,1759343438478,-500.0,0.00019178,2]
[388740566,1759343438487,-500.0,0.00019178,2]
[388740567,1759343438501,-500.0,0.00019178,2]
[388740569,1759343438511,-642.87,0.00019178,2]
[388740570,1759343438522,-500.0,0.00019178,2]
[388740571,1759343438531,-500.0,0.00019178,2]
[388740572,1759343438541,-500.0,0.00019178,2]
[388740573,1759343438550,-500.0,0.00019178,2]
[388740574,1759343438560,-500.0,0.00019178,2]
[388740575,1759343438569,-500.0,0.00019178,2]
[388740576,1759343438579,-345.49,0.00019178,2]
[388740577,1759343438588,-500.0,0.00019178,2]
[388740578,1759343438598,-500.0,0.00019178,2]
[388740579,1759343438608,-480.0,0.00019178,2]
[388740580,1759343438618,-500.0,0.00019178,2]
[388740582,1759343438627,-579.14,0.00019178,2]
[388740583,1759343438636,-500.0,0.00019178,2]
[388740584,1759343438645,-440.0,0.00019178,2]
[388740585,1759343438655,-440.0,0.00019178,2]
[388740586,1759343438664,-500.0,0.00019178,2]
[388740587,1759343438674,-480.0,0.00019178,2]
[388740588,1759343438684,-500.0,0.00019178,2]
[388740589,1759343438693,-500.0,0.00019178,2]
[388740590,1759343438702,-539.97,0.00019178,2]
[388740591,1759343438712,-307.25902677,0.00019178,2]
[388740592,1759343438724,-101.85095387,0.00019178,2]
[388740593,1759343438733,-500.0,0.00019178,2]
[388740594,1759343438743,-480.0,0.00019178,2]
[388740595,1759343438754,-500.0,0.00019178,2]
[388740596,1759343438768,-500.0,0.00019178,2]
[388740597,1759343438778,-442.34479527,0.00019178,2]
[388740598,1759343438787,-500.0,0.00019178,2]
[388740599,1759343438797,-500.0,0.00019178,2]
[388740600,1759343438807,-500.0,0.00019178,2]
[388740601,1759343438817,-500.0,0.00019178,2]
[388740602,1759343438827,-500.0,0.00019178,2]
[388740603,1759343438837,-500.0,0.00019178,2]
[388740604,1759343438847,-500.0,0.00019178,2]
[388740605,1759343438857,-1517.63,0.00019178,2]
[388740606,1759343438866,-500.0,0.00019178,2]
[388740607,1759343438876,-500.0,0.00019178,2]
[388740608,1759343438885,-500.0,0.00019178,2]
[388740609,1759343438895,-500.0,0.00019178,2]
[388740610,1759343438904,-500.0,0.00019178,2]
[388740611,1759343438913,-500.0,0.00019178,2]
[388740612,1759343438924,-420.0,0.00019178,2]
[388740613,1759343438934,-510.83,0.00019178,2]
[388740614,1759343438943,-500.0,0.00019178,2]
[388740615,1759343438954,-500.0,0.00019178,2]
[388740616,1759343438964,-500.0,0.00019178,2]
[388740617,1759343438974,-500.0,0.00019178,2]
[388740618,1759343438983,-500.0,0.00019178,2]
[388740619,1759343438994,-500.0,0.00019178,2]
[388740620,1759343439003,-500.0,0.00019178,2]
[388740621,1759343439013,-500.0,0.00019178,2]
[388740622,1759343439022,-507.62,0.00019178,2]
[388740623,1759343439034,-500.0,0.00019178,2]
[388740624,1759343439043,-500.0,0.00019178,2]
[388740625,1759343439052,-500.0,0.00019178,2]
[388740626,1759343439063,-500.0,0.00019178,2]
[388740627,1759343439072,-500.0,0.00019178,2]
[388740628,1759343439082,-500.0,0.00019178,2]
[388740629,1759343439091,-500.0,0.00019178,2]
[388740630,1759343439100,-500.0,0.00019178,2]
[388740631,1759343439110,-460.0,0.00019178,2]
[388740632,1759343439119,-500.0,0.00019178,2]
[388740633,1759343439128,-500.0,0.00019178,2]
[388740634,1759343439138,-500.0,0.00019178,2]
[388740635,1759343439148,-500.0,0.00019178,2]
[388740636,1759343439157,-480.0,0.00019178,2]
[388740637,1759343439167,-500.0,0.00019178,2]
[388740638,1759343439176,-500.0,0.00019178,2]
[388740639,1759343439186,-500.0,0.00019178,2]
[388740640,1759343439195,-500.0,0.00019178,2]
[388740641,1759343439205,-500.0,0.00019178,2]
[388740642,1759343439216,-500.0,0.00019178,2]
[388740643,1759343439226,-500.0,0.00019178,2]
[388740644,1759343439235,-60.1862685,0.00019178,2]
[388740645,1759343439252,-439.8137315,0.00019178,2]
[388740646,1759343439262,-500.0,0.00019178,2]
[388740647,1759343439271,-500.0,0.00019178,2]
[388740648,1759343439280,-500.0,0.00019178,2]
[388740649,1759343439290,-500.0,0.00019178,2]
[388740650,1759343439299,-201.0317241,0.00019178,2]
[388740651,1759343439309,-482.28156793,0.00019178,2]
[388740652,1759343439319,-500.0,0.00019178,2]
[388740653,1759343439328,-391.40253872,0.00019178,2]
[388740672,1759343440378,-88.59746128,0.00019178,2]
[388740674,1759343440388,-500.0,0.00019178,2]
[388740676,1759343440397,-653.38,0.00019178,2]
[388740678,1759343440407,-500.0,0.00019178,2]
[388740680,1759343440417,-500.0,0.00019178,2]
[388740682,1759343440426,-497.85,0.00019178,2]
[388740684,1759343440436,-500.0,0.00019178,2]
[388740686,1759343440446,-480.0,0.00019178,2]
[388740688,1759343440457,-500.0,0.00019178,2]
[388740690,1759343440466,-500.0,0.00019178,2]
[388740692,1759343440475,-500.0,0.00019178,2]
[388740694,1759343440484,-891.45,0.00019178,2]
[388740696,1759343440494,-480.0,0.00019178,2]
[388740698,1759343440503,-2207.73,0.00019178,2]
[388740700,1759343440512,-500.0,0.00019178,2]
[388740702,1759343440522,-500.0,0.00019178,2]
[388740704,1759343440531,-500.0,0.00019178,2]
[388740706,1759343440540,-500.0,0.00019178,2]
[388740708,1759343440549,-500.0,0.00019178,2]
[388740710,1759343440558,-500.0,0.00019178,2]
[388740712,1759343440567,-538.09,0.00019178,2]
[388740714,1759343440576,-500.0,0.00019178,2]
[388740716,1759343440585,-500.0,0.00019178,2]
[388740718,1759343440595,-500.0,0.00019178,2]
[388740720,1759343440604,-500.0,0.00019178,2]
[388740722,1759343440612,-500.0,0.00019178,2]
[388740724,1759343440621,-500.0,0.00019178,2]
[388740726,1759343440630,-500.0,0.00019178,2]
[388740728,1759343440641,-500.0,0.00019178,2]
[388740730,1759343440649,-500.0,0.00019178,2]
[388740732,1759343440658,-500.0,0.00019178,2]
[388740734,1759343440667,-500.0,0.00019178,2]
[388740735,1759343440676,-500.0,0.00019178,2]
[388740737,1759343440687,-460.0,0.00019178,2]
[388740739,1759343440696,-500.0,0.00019178,2]
[388740741,1759343440706,-500.0,0.00019178,2]
[388740743,1759343440715,-480.0,0.00019178,2]
[388740745,1759343440724,-500.0,0.00019178,2]
[388740747,1759343440733,-480.0,0.00019178,2]
[388740749,1759343440742,-480.0,0.00019178,2]
[388740751,1759343440751,-485.34002496,0.00019178,2]
[388740792,1759343443669,-14.65997504,0.00019178,2]
[388740793,1759343443679,-641.34,0.00019178,2]
[388740794,1759343443688,-500.0,0.00019178,2]
[388740795,1759343443698,-388.53366544,0.00019178,2]
[388740796,1759343443707,-500.0,0.00019178,2]
[388740797,1759343443717,-500.0,0.00019178,2]
[388740798,1759343443727,-500.0,0.00019178,2]
[388740799,1759343443736,-500.0,0.00019178,2]
[388740800,1759343443747,-460.0,0.00019178,2]
[388740801,1759343443756,-500.0,0.00019178,2]
[388740802,1759343443766,-500.0,0.00019178,2]
[388740803,1759343443775,-500.0,0.00019178,2]
[388740804,1759343443785,-500.0,0.00019178,2]
[388740805,1759343443794,-500.0,0.00019178,2]
[388740806,1759343443803,-500.0,0.00019178,2]
[388740807,1759343443813,-382.26086114,0.00019178,2]
[388740808,1759343443822,-500.0,0.00019178,2]
[388740809,1759343443831,-500.0,0.00019178,2]
[388740810,1759343443840,-500.0,0.00019178,2]
[388740811,1759343443851,-500.0,0.00019178,2]
[388740812,1759343443860,-500.0,0.00019178,2]
[388740814,1759343443870,-597.52,0.00019178,2]
[388740816,1759343443879,-174.07,0.00019178,2]
[388740818,1759343443889,-500.0,0.00019178,2]
[388740822,1759343444062,-500.0,0.00019178,2]
[388740823,1759343444072,-539.57,0.00019442,3]
[388740824,1759343444082,-269.79,0.00019442,3]
[388740825,1759343444092,-809.37,0.00019442,3]
[388740826,1759343444103,-28741.93618553,0.0001945,2]
[388740827,1759343444112,-500.0,0.00019451,2]
[388740828,1759343444122,-500.0,0.00019451,2]
[388740829,1759343444132,-500.0,0.00019452,2]
[388740830,1759343444141,-480.0,0.00019452,2]
[388740831,1759343444150,-500.0,0.00019452,2]
[388740832,1759343444160,-480.0,0.00019452,2]
[388740833,1759343444169,-500.0,0.00019452,2]
[388740834,1759343444179,-500.0,0.00019452,2]
[388740835,1759343444187,-500.0,0.00019452,2]
[388740836,1759343444197,-500.0,0.00019452,2]
[388740837,1759343444206,-500.0,0.00019452,2]
[388740838,1759343444215,-500.0,0.00019452,2]
[388740839,1759343444225,-500.0,0.00019452,2]
[388740840,1759343444234,-500.0,0.00019452,2]
[388740841,1759343444243,-500.0,0.00019452,2]
[388740842,1759343444252,-500.0,0.00019452,2]
[388740843,1759343444261,-500.0,0.00019452,2]
[388740844,1759343444270,-500.0,0.00019452,2]
[388740845,1759343444279,-500.0,0.00019452,2]
[388740846,1759343444288,-500.0,0.00019452,2]
[388740847,1759343444297,-500.0,0.00019452,2]
[388740848,1759343444307,-500.0,0.00019452,2]
[388740849,1759343444317,-500.0,0.00019452,2]
[388740850,1759343444326,-500.0,0.00019452,2]
[388740851,1759343444335,-500.0,0.00019452,2]
[388740852,1759343444345,-500.0,0.00019452,2]
[388740853,1759343444354,-500.0,0.00019452,2]
[388740854,1759343444363,-500.0,0.00019452,2]
[388740855,1759343444373,-500.0,0.00019452,2]
[388740856,1759343444383,-1517.63,0.00019452,2]
[388740857,1759343444392,-500.0,0.00019452,2]
[388740858,1759343444400,-500.0,0.00019452,2]
[388740859,1759343444410,-500.0,0.00019452,2]
[388740860,1759343444419,-500.0,0.00019452,2]
[388740861,1759343444428,-500.0,0.00019452,2]
[388740862,1759343444437,-500.0,0.00019452,2]
[388740863,1759343444446,-510.83,0.00019452,2]
[388740864,1759343444455,-500.0,0.00019452,2]
[388740865,1759343444464,-500.0,0.00019452,2]
[388740866,1759343444473,-500.0,0.00019452,2]
[388740867,1759343444482,-500.0,0.00019452,2]
[388740868,1759343444492,-500.0,0.00019452,2]
[388740869,1759343444501,-507.62,0.00019452,2]
[388740870,1759343444510,-500.0,0.00019452,2]
[388740871,1759343444519,-480.0,0.00019452,2]
[388740872,1759343444529,-500.0,0.00019452,2]
[388740873,1759343444538,-500.0,0.00019452,2]
[388740874,1759343444547,-500.0,0.00019452,2]
[388740875,1759343444556,-500.0,0.00019452,2]
[388740876,1759343444565,-498.05,0.00019452,2]
[388740877,1759343444575,-500.0,0.00019452,2]
[388740878,1759343444584,-282.56797695,0.00019452,2]
[388740879,1759343444593,-500.0,0.00019452,2]
[388740880,1759343444602,-500.0,0.00019452,2]
[388740881,1759343444611,-500.0,0.00019452,2]
[388740882,1759343444621,-500.0,0.00019452,2]
[388740883,1759343444630,-500.0,0.00019452,2]
[388740884,1759343444639,-500.0,0.00019452,2]
[388740885,1759343444648,-500.0,0.00019452,2]
[388740886,1759343444658,-500.0,0.00019452,2]
[388740887,1759343444667,-500.0,0.00019452,2]
[388740888,1759343444677,-500.0,0.00019452,2]
[388740889,1759343444686,-500.0,0.00019452,2]
[388740890,1759343444695,-653.38,0.00019452,2]
[388740891,1759343444705,-500.0,0.00019452,2]
[388740892,1759343444714,-500.0,0.00019452,2]
[388740893,1759343444722,-500.0,0.00019452,2]
[388740894,1759343444733,-500.0,0.00019452,2]
[388740895,1759343444742,-891.45,0.00019452,2]
[388740896,1759343444751,-2207.73,0.00019452,2]
[388740897,1759343444759,-500.0,0.00019452,2]
[388740898,1759343444768,-183.17,0.00019452,2]
[388740899,1759343444777,-500.0,0.00019452,2]
[388740900,1759343444786,-500.0,0.00019452,2]
[388740901,1759343444795,-281.63,0.00019452,2]
[388740902,1759343444803,-550.08891418,0.00019452,2]
[388740903,1759343444812,-500.0,0.00019452,2]
[388740904,1759343444821,-500.0,0.00019452,2]
[388740905,1759343444830,-500.0,0.00019452,2]
[388740906,1759343444838,-500.0,0.00019452,2]
[388740907,1759343444848,-500.0,0.00019452,2]
[388740908,1759343444857,-356.10354679,0.00019452,2]
[388740909,1759343444866,-500.0,0.00019452,2]
[388740910,1759343444875,-500.0,0.00019452,2]
[388740911,1759343444884,-500.0,0.00019452,2]
[388740912,1759343444894,-500.0,0.00019452,2]
[388740913,1759343444904,-641.34,0.00019452,2]
[388740914,1759343444913,-500.0,0.00019452,2]
[388740915,1759343444922,-500.0,0.00019452,2]
[388740916,1759343444932,-192.44,0.00019452,2]
[388740917,1759343444941,-500.0,0.00019452,2]
[388740918,1759343444950,-500.0,0.00019452,2]
[388740919,1759343444963,-500.0,0.00019452,2]
[388740920,1759343444972,-500.0,0.00019452,2]
[388740921,1759343444980,-500.0,0.00019452,2]
[388740922,1759343444990,-500.0,0.00019452,2]
[388740923,1759343445000,-500.0,0.00019452,2]
[388740924,1759343445010,-500.0,0.00019452,2]
[388740925,1759343445019,-597.52,0.00019452,2]
[388740926,1759343445030,-500.0,0.00019452,2]
[388740927,1759343445039,-600.0,0.00019561,2]
[388740928,1759343445053,-766.71023493,0.0001959,2]
[388740933,1759343446444,-480.0,0.00019178,2]
[388740934,1759343446455,-480.0,0.00019178,2]
[388740935,1759343446465,-5581.3990242,0.0001959,2]
[388740936,1759343446477,-605.49999996,0.0001959,2]
[388740956,1759343564572,178.93,0.00028767,120]
[388740961,1759343660453,-200.0,0.000199,10]
[388740962,1759343660821,967.58649442,0.00019078,2]
[388740963,1759343693023,-720.0,0.00021517,20]
[388740965,1759343728664,-720.0,0.00021517,20]
[388740966,1759343728694,-1500.0,0.00022,5]
[388740972,1759343866640,1000.0,0.00018178,2]
[388740974,1759343888115,-720.0,0.00021517,20]
[388740975,1759343891116,500.0,0.00027397,120]
[388740977,1759343930791,157.0,9.3e-07,2]
[388740978,1759343931666,157.0,9.3e-07,2]
[388740980,1759343944576,846.63818267,0.00019077,2]
[388740981,1759343957669,-720.0,0.00021515,20]
[388740987,1759344049681,-720.0,0.00021515,20]
[388740991,1759344083176,800.0,0.00028,120]
[388740993,1759344106771,600.0,0.000284,120]
[388740994,1759344139973,1425.70857081,0.00017127,2]
[388740995,1759344140269,1425.70857081,0.00017531,2]
[388740996,1759344140610,1425.70857081,0.00017741,2]
[388740997,1759344140947,1425.70857081,0.00017855,2]
[388740998,1759344141227,1168.95103967,0.00018098,2]
[388740999,1759344141249,256.75753114,0.00018098,2]
[388741000,1759344141514,1425.70857081,0.00018586,2]
[388741001,1759344141855,1425.70857081,0.00018777,2]
[388741002,1759344142144,1425.70857081,0.0001899,2]
[388741004,1759344162239,616.0,0.000284,120]
[388741005,1759344178726,800.0,0.000284,120]
[388741006,1759344189405,194.300234,0.00018178,2]
[388741007,1759344208169,-720.0,0.00021517,20]
[388741008,1759344224757,740.80840981,0.00019078,2]
[388741010,1759344252528,-720.0,0.00021515,20]
[388741012,1759344285702,940.641162,0.00018178,2]
[388741024,1759344406510,-720.0,0.00021515,20]
[388741026,1759344435096,288.0,0.00028767,120]
[388741029,1759344513727,648.20735861,0.00019077,2]
[388741032,1759344579754,388.0,0.00028767,120]
[388741034,1759344614140,500.0,0.00033781,60]
[388741062,1759344632590,-605.57180953,0.00019172,2]
[388741067,1759344632643,-594.42819047,0.00019172,2]
[388741069,1759344632653,-1200.0,0.00019173,2]
[388741071,1759344632663,-300.0,0.00019173,2]
[388741072,1759344632672,-300.0,0.00019173,2]
[388741073,1759344632682,-300.0,0.00019173,2]
[388741074,1759344632691,-300.0,0.00019173,2]
[388741075,1759344632700,-500.0,0.00019176,2]
[388741076,1759344632710,-490.09559808,0.00019176,2]
[388741077,1759344632720,-500.0,0.00019176,2]
[388741079,1759344632729,-50000.0,0.00019177,2]
[388741080,1759344632738,-404.11618635,0.00019177,2]
[388741081,1759344632747,-260.07117467,0.00019177,2]
[388741083,1759344632756,-520.0,0.00019178,3]
[388741086,1759344632765,-499.52201721,0.00019178,2]
[388741088,1759344632774,-480.0,0.00019178,2]
[388741090,1759344632784,-500.0,0.00019178,2]
[388741092,1759344632793,-480.0,0.00019178,2]
[388741094,1759344632802,-480.0,0.00019178,2]
[388741096,1759344632811,-480.0,0.00019178,2]
[388741098,1759344632820,-480.0,0.00019178,2]
[388741100,1759344632830,-480.0,0.00019178,2]
[388741102,1759344632840,-400.0,0.00019178,2]
[388741103,1759344632849,-480.0,0.00019178,2]
[388741104,1759344632858,-480.0,0.00019178,2]
[388741105,1759344632867,-480.0,0.00019178,2]
[388741106,1759344632876,-480.0,0.00019178,2]
[388741107,1759344632885,-480.0,0.00019178,2]
[388741108,1759344632895,-500.0,0.00019178,2]
[388741109,1759344632903,-480.0,0.00019178,2]
[388741110,1759344632913,-500.0,0.00019178,2]
[388741111,1759344632922,-481.22310437,0.00019178,2]
[388741112,1759344632931,-480.0,0.00019178,2]
[388741113,1759344632940,-500.0,0.00019178,2]
[388741114,1759344632949,-480.0,0.00019178,2]
[388741115,1759344632958,-480.0,0.00019178,2]
[388741116,1759344632968,-480.0,0.00019178,2]
[388741117,1759344632977,-500.0,0.00019178,2]
[388741118,1759344632987,-610.93092228,0.00019178,2]
[388741123,1759344632996,-500.0,0.00019178,2]
[388741126,1759344633172,-615.17,0.00019178,2]
[388741128,1759344633183,-500.0,0.00019178,2]
[388741130,1759344633194,-500.0,0.00019178,2]
[388741132,1759344633204,-500.0,0.00019178,2]
[388741134,1759344633215,-480.0,0.00019178,2]
[388741136,1759344633225,-500.0,0.00019178,2]
[388741138,1759344633234,-480.0,0.00019178,2]
[388741140,1759344633244,-440.0,0.00019178,2]
[388741142,1759344633253,-469.70766939,0.00019178,2]
[388741144,1759344633262,-500.0,0.00019178,2]
[388741146,1759344633272,-500.0,0.00019178,2]
[388741148,1759344633281,-500.0,0.00019178,2]
[388741149,1759344633291,-480.0,0.00019178,2]
[388741150,1759344633301,-480.0,0.00019178,2]
[388741152,1759344633310,-500.0,0.00019178,2]
[388741153,1759344633321,-480.0,0.00019178,2]
[388741155,1759344633335,-440.0,0.00019178,2]
[388741156,1759344633347,-480.0,0.00019178,2]
[388741157,1759344633356,-480.0,0.00019178,2]
[388741158,1759344633366,-500.0,0.00019178,2]
[388741159,1759344633375,-480.0,0.00019178,2]
[388741160,1759344633384,-500.0,0.00019178,2]
[388741161,1759344633393,-480.0,0.00019178,2]
[388741162,1759344633403,-500.0,0.00019178,2]
[388741163,1759344633412,-480.0,0.00019178,2]
[388741164,1759344633421,-480.0,0.00019178,2]
[388741165,1759344633431,-480.0,0.00019178,2]
[388741166,1759344633440,-480.0,0.00019178,2]
[388741167,1759344633450,-231.89,0.00019178,2]
[388741168,1759344633459,-505.75,0.00019178,2]
[388741169,1759344633469,-480.0,0.00019178,2]
[388741170,1759344633478,-480.0,0.00019178,2]
[388741171,1759344633487,-500.0,0.00019178,2]
[388741172,1759344633497,-480.0,0.00019178,2]
[388741173,1759344633506,-500.0,0.00019178,2]
[388741174,1759344633516,-480.0,0.00019178,2]
[388741175,1759344633525,-480.0,0.00019178,2]
[388741176,1759344633535,-480.0,0.00019178,2]
[388741177,1759344633544,-480.0,0.00019178,2]
[388741178,1759344633553,-585.81,0.00019178,2]
[388741179,1759344633562,-460.18967431,0.00019178,2]
[388741180,1759344633571,-480.0,0.00019178,2]
[388741181,1759344633582,-480.0,0.00019178,2]
[388741182,1759344633592,-480.0,0.00019178,2]
[388741183,1759344633601,-480.0,0.00019178,2]
[388741184,1759344633611,-500.0,0.00019178,2]
[388741185,1759344633620,-563.66,0.00019178,2]
[388741186,1759344633630,-480.0,0.00019178,2]
[388741187,1759344633639,-500.0,0.00019178,2]
[388741188,1759344633648,-619.03,0.00019178,2]
[388741189,1759344633657,-481.39934473,0.00019178,2]
[388741190,1759344633666,-480.0,0.00019178,2]
[388741191,1759344633675,-480.0,0.00019178,2]
[388741192,1759344633684,-480.0,0.00019178,2]
[388741193,1759344633693,-481.89084614,0.00019178,2]
[388741194,1759344633702,-536.41,0.00019178,2]
[388741195,1759344633711,-500.0,0.00019178,2]
[388741196,1759344633722,-480.0,0.00019178,2]
[388741197,1759344633732,-480.0,0.00019178,2]
[388741198,1759344633741,-480.0,0.00019178,2]
[388741199,1759344633750,-500.0,0.00019178,2]
[388741200,1759344633759,-480.0,0.00019178,2]
[388741201,1759344633768,-460.2,0.00019178,2]
[388741202,1759344633778,-480.0,0.00019178,2]
[388741203,1759344633787,-480.0,0.00019178,2]
[388741204,1759344633796,-500.0,0.00019178,2]
[388741205,1759344633805,-500.0,0.00019178,2]
[388741206,1759344633814,-500.0,0.00019178,2]
[388741207,1759344633823,-480.0,0.00019178,2]
[388741208,1759344633833,-480.0,0.00019178,2]
[388741209,1759344633843,-500.0,0.00019178,2]
[388741210,1759344633852,-507.82,0.00019178,2]
[388741211,1759344633861,-480.0,0.00019178,2]
[388741212,1759344633871,-480.0,0.00019178,2]
[388741213,1759344633879,-480.0,0.00019178,2]
[388741214,1759344633889,-566.34,0.00019178,2]
[388741215,1759344633898,-480.0,0.00019178,2]
[388741216,1759344633907,-197.10785413,0.00019178,2]
[388741217,1759344633917,-500.0,0.00019178,2]
[388741218,1759344633926,-480.0,0.00019178,2]
[388741219,1759344633935,-500.0,0.00019178,2]
[388741220,1759344633944,-480.0,0.00019178,2]
[388741221,1759344633954,-586.91,0.00019178,2]
[388741222,1759344633963,-480.0,0.00019178,2]
[388741223,1759344633972,-480.0,0.00019178,2]
[388741224,1759344633981,-480.0,0.00019178,2]
[388741225,1759344633989,-480.0,0.00019178,2]